Workbook

Sheet Instructions
A1: Note: There are nine worksheets in this workbook.
A3: Run Random Walks with different number of steps N (100, 169, 256): use corresponding worksheet for different N.
A5: Log N, ΔX, ΔY, and R for each walk into the corresponding DataLog worksheet.
A6: Note the button:
B7: Walk Again | C7: Loads new random sequence and therefore makes a new random walk and then Pastes values of N, ΔX, ΔY, and R into the Log table and brings you back to "Walk" data.
A12: Make a plot of R vs √N in the RvsSqrtNplot worksheet. You will have three points (N=100, 169, 256). Do you get a straight line?

Sheet N=100
M1: N | N1: ΔX | O1: ΔY | P1: R
M2: =A104 -> 100 | N2: =F104 -> -2.431097971 | O2: =G104 -> -7.650042778 | P2: =SQRT(F104^2+G104^2) -> 8.027041289
A4: N | B4: Random Seq | C4: Random Angles | D4: Δx | E4: Δy | F4: ΔX | G4: ΔY
A5: 1 | B5: 0 | C5: =B5*2*3.14159265359 -> 0 | D5: 0 | E5: =SIN(C5) -> 0 | F5: 0 | G5: =E5 -> 0
A6: 2 | B6: =RAND() -> 0.4956527545 | C6: =B6*2*3.14159265359 -> 3.114278104 | D6: =COS(C6) -> -0.9996269809 | E6: =SIN(C6) -> 0.02731115282 | F6: =F5+D6 -> -0.9996269809 | G6: =G5+E6 -> 0.02731115282
A7: 3 | B7: 0.7251033114 | C7: 4.555958472 | D7: -0.1557932995 | E7: -0.9877896779 | F7: =F6+D7 -> -1.15542028 | G7: =G6+E7 -> -0.9604785251
A8: 4 | B8: 0.04806077963 | C8: 0.3019747844 | D8: 0.954751038 | E8: 0.2974062128 | F8: =F7+D8 -> -0.2006692424 | G8: =G7+E8 -> -0.6630723123
A9: 5 | B9: 0.01974874499 | C9: 0.1240850244 | D9: 0.9923113262 | E9: 0.1237668446 | F9: 0.7916420839 | G9: =G8+E9 -> -0.5393054676
A10: 6 | B10: 0.7500859423 | C10: 4.712928972 | D10: 0.0005399912849 | E10: -0.9999998542 | F10: 0.7921820751 | G10: -1.539305322
A11: 7 | B11: 0.3512836504 | C11: 2.207180271 | D11: -0.5942911203 | E11: 0.8042500012 | F11: 0.1978909549 | G11: -0.7350553207
A12: 8 | B12: 0.2776535213 | C12: 1.744548526 | D12: -0.1728792594 | E12: 0.9849430246 | F12: 0.0250116955 | G12: 0.2498877039
A13: 9 | B13: 0.7637748817 | C13: 4.798939115 | D13: 0.08644211817 | E13: -0.9962568746 | F13: =F12+D13 -> 0.1114538137 | G13: =G12+E13 -> -0.7463691707
A14: 10 | B14: 0.5692747615 | C14: 3.576858817 | D14: -0.9067578461 | E14: -0.4216517621 | F14: -0.7953040325 | G14: -1.168020933
A15: 11 | B15: 0.9541418983 | C15: 5.995050356 | D15: 0.9587755236 | E15: -0.2841645568 | F15: 0.1634714911 | G15: -1.45218549
A16: 12 | B16: 0.2484028169 | C16: 1.56076093 | D16: 0.0100352287 | E16: 0.9999496458 | F16: 0.1735067198 | G16: -0.4522358438
A17: 13 | B17: 0.04686149703 | C17: 0.2944394696 | D17: 0.9569649605 | E17: 0.2902034878 | F17: 1.13047168 | G17: -0.1620323559
A18: 14 | B18: 0.3731384741 | C18: 2.344498178 | D18: -0.698788061 | E18: 0.7153287676 | F18: 0.4316836193 | G18: 0.5532964117
A19: 15 | B19: 0.1121003428 | C19: 0.704347227 | D19: 0.7620344085 | E19: 0.647536532 | F19: 1.193718028 | G19: 1.200832944
A20: 16 | B20: 0.6583505347 | C20: 4.136538407 | D20: -0.5445483889 | E20: -0.8387294273 | F20: 0.6491696389 | G20: 0.3621035164
A21: 17 | B21: 0.8833898471 | C21: 5.550502108 | D21: 0.743382378 | E21: -0.6688666834 | F21: 1.392552017 | G21: -0.3067631669
A22: 18 | B22: 0.2499746186 | C22: 1.570636851 | D22: 0.0001594757754 | E22: 0.9999999873 | F22: 1.392711493 | G22: 0.6932368203
A23: 19 | B23: 0.8475150651 | C23: 5.325094205 | D23: 0.575082693 | E23: -0.8180952855 | F23: 1.967794186 | G23: -0.1248584652
A24: 20 | B24: 0.7931705894 | C24: 4.983637793 | D24: 0.2679347978 | E24: -0.9634370473 | F24: 2.235728983 | G24: -1.088295513
A25: 21 | B25: 0.7401877347 | C25: 4.650736699 | D25: -0.06161323209 | E25: -0.9981001 | F25: 2.174115751 | G25: -2.086395613
A26: 22 | B26: 0.5647596676 | C26: 3.548489646 | D26: -0.9183532935 | E26: -0.3957615802 | F26: 1.255762458 | G26: -2.482157193
A27: 23 | B27: 0.4313555595 | C27: 2.710286913 | D27: -0.90842065 | E27: 0.4180573198 | F27: 0.3473418079 | G27: -2.064099873
A28: 24 | B28: 0.04295600243 | C28: 0.2699005233 | D28: 0.9637974251 | E28: 0.2666355627 | F28: 1.311139233 | G28: -1.79746431
A29: 25 | B29: 0.9844782751 | C29: 6.185659433 | D29: 0.9952481201 | E29: -0.09737134773 | F29: 2.306387353 | G29: -1.894835658
A30: 26 | B30: 0.5913052669 | C30: 3.715280565 | D30: -0.8399051393 | E30: -0.5427332281 | F30: 1.466482214 | G30: -2.437568886
A31: 27 | B31: 0.02229245832 | C31: 0.1400676466 | D31: 0.9902065543 | E31: 0.1396100991 | F31: 2.456688768 | G31: -2.297958787
A32: 28 | B32: 0.8174772464 | C32: 5.136361023 | D32: 0.4113840555 | E32: -0.9114620996 | F32: 2.868072824 | G32: -3.209420887
A33: 29 | B33: 0.9584595705 | C33: 6.022179091 | D33: 0.9661308103 | E33: -0.2580528191 | F33: 3.834203634 | G33: -3.467473706
A34: 30 | B34: 0.4732728244 | C34: 2.973660856 | D34: -0.9859325622 | E34: 0.1671435995 | F34: 2.848271072 | G34: -3.300330106
A35: 31 | B35: 0.6870716497 | C35: 4.316998494 | D35: -0.3851685769 | E35: -0.9228462317 | F35: 2.463102495 | G35: -4.223176338
A36: 32 | B36: 0.3180009201 | C36: 1.998058709 | D36: =COS(C36) -> -0.4143808424 | E36: =SIN(C36) -> 0.9101035751 | F36: 2.048721652 | G36: -3.313072763
A37: 33 | B37: 0.731969738 | C37: 4.599101503 | D37: -0.1130453099 | E37: =SIN(C37) -> -0.9935898338 | F37: 1.935676342 | G37: -4.306662597
A38: 34 | B38: 0.5384680783 | C38: 3.383294718 | D38: -0.9709319829 | E38: -0.2393555611 | F38: 0.9647443596 | G38: -4.546018158
A39: 35 | B39: 0.8212091132 | C39: 5.159809034 | D39: 0.4326409842 | E39: -0.901566292 | F39: 1.397385344 | G39: -5.44758445
A40: 36 | B40: 0.4863836911 | C40: 3.056038861 | D40: -0.996342506 | E40: 0.08544946268 | F40: 0.4010428377 | G40: -5.362134987
A41: 37 | B41: 0.7742511393 | C41: 4.864763383 | D41: 0.1517854493 | E41: -0.9884134648 | F41: =F40+D41 -> 0.552828287 | G41: =G40+E41 -> -6.350548452
A42: 38 | B42: 0.1411300655 | C42: 0.886746354 | D42: 0.631937007 | E42: 0.7750197541 | F42: 1.184765294 | G42: -5.575528698
A43: 39 | B43: 0.3686139625 | C43: 2.316069833 | D43: -0.6781728363 | E43: 0.7349024453 | F43: 0.5065924577 | G43: -4.840626253
A44: 40 | B44: 0.931228474 | C44: 5.851081065 | D44: 0.908086541 | E44: -0.4187825618 | F44: 1.414678999 | G44: -5.259408814
A45: 41 | B45: 0.1480977924 | C45: 0.9305258732 | D45: 0.5974123492 | E45: 0.8019342149 | F45: 2.012091348 | G45: -4.457474599
A46: 42 | B46: 0.453127827 | C46: 2.847086105 | D46: -0.9569454918 | E46: 0.2902676795 | F46: 1.055145856 | G46: -4.16720692
A47: 43 | B47: 0.5049166012 | C47: 3.17248457 | D47: -0.9995228827 | E47: -0.030887003 | F47: 0.05562297346 | G47: -4.198093923
A48: 44 | B48: 0.4660773186 | C48: 2.92845016 | D48: -0.9773710028 | E48: 0.2115323211 | F48: -0.9217480294 | G48: -3.986561602
A49: 45 | B49: 0.3842752733 | C49: 2.414472751 | D49: -0.7470919587 | E49: 0.6647206972 | F49: -1.668839988 | G49: -3.321840905
A50: 46 | B50: 0.4341456075 | C50: 2.727817302 | D50: -0.9156094001 | E50: 0.4020689325 | F50: -2.584449388 | G50: -2.919771972
A51: 47 | B51: 0.8551043024 | C51: 5.372778789 | D51: 0.613424751 | E51: -0.7897531734 | F51: -1.971024637 | G51: -3.709525146
A52: 48 | B52: 0.8096030758 | C52: 5.08688615 | D52: 0.3658045955 | E52: -0.9306916771 | F52: -1.605220042 | G52: -4.640216823
A53: 49 | B53: 0.470365569 | C53: 2.955394032 | D53: -0.9827150623 | E53: 0.1851245699 | F53: -2.587935104 | G53: -4.455092253
A54: 50 | B54: 0.6266316399 | C54: 3.937242713 | D54: -0.6998205647 | E54: -0.7143186805 | F54: -3.287755669 | G54: -5.169410933
A55: 51 | B55: 0.8091780064 | C55: 5.084215361 | D55: =COS(C55) -> 0.3633176125 | E55: =SIN(C55) -> -0.9316653436 | F55: -2.924438056 | G55: -6.101076277
A56: 52 | B56: 0.6069028557 | C56: 3.813283106 | D56: -0.7827707994 | E56: =SIN(C56) -> -0.6223101121 | F56: -3.707208855 | G56: -6.723386389
A57: 53 | B57: 0.9661206312 | C57: 6.070314955 | D57: 0.9774285332 | E57: -0.2112663305 | F57: -2.729780322 | G57: -6.93465272
A58: 54 | B58: 0.3435330986 | C58: 2.158482117 | D58: -0.5544365641 | E58: 0.8322259888 | F58: -3.284216886 | G58: -6.102426731
A59: 55 | B59: 0.9205241375 | C59: 5.783823736 | D59: 0.877888462 | E59: -0.4788651671 | F59: -2.406328424 | G59: -6.581291898
A60: 56 | B60: 0.07334311903 | C60: 0.4608284079 | D60: 0.89568442 | E60: 0.4446902515 | F60: -1.510644004 | G60: -6.136601646
A61: 57 | B61: 0.1659384031 | C61: 1.042621737 | D61: 0.5039575234 | E61: 0.863728438 | F61: -1.006686481 | G61: -5.272873208
A62: 58 | B62: 0.2060120399 | C62: 1.294411822 | D62: 0.2728791582 | E62: 0.9620483174 | F62: -0.7338073226 | G62: -4.310824891
A63: 59 | B63: 0.6705097525 | C63: 4.212937025 | D63: -0.4789445118 | E63: -0.8778451769 | F63: -1.212751834 | G63: -5.188670068
A64: 60 | B64: 0.6233403572 | C64: 3.916562974 | D64: -0.7144418014 | E64: -0.699694871 | F64: -1.927193636 | G64: -5.888364939
A65: 61 | B65: 0.8958864089 | C65: 5.629020321 | D65: 0.7935563081 | E65: -0.6084968249 | F65: -1.133637328 | G65: -6.496861764
A66: 62 | B66: 0.01845593911 | C66: 0.1159620855 | D66: 0.9932839285 | E66: 0.1157023658 | F66: -0.1403533993 | G66: -6.381159398
A67: 63 | B67: 0.9705000128 | C67: 6.097831421 | D67: 0.9828710929 | E67: -0.1842943696 | F67: 0.8425176937 | G67: -6.565453768
A68: 64 | B68: 0.320667409 | C68: 2.014812752 | D68: -0.4295698875 | E68: 0.9030336161 | F68: 0.4129478061 | G68: -5.662420152
A69: 65 | B69: 0.8632624819 | C69: 5.424038143 | D69: 0.6530835459 | E69: -0.7572858655 | F69: 1.066031352 | G69: -6.419706017
A70: 66 | B70: =RAND() -> 0.9033788038 | C70: =B70*2*3.14159265359 -> 5.676096427 | D70: =COS(C70) -> 0.821312228 | E70: -0.5704789428 | F70: 1.88734358 | G70: -6.99018496
A71: 67 | B71: 0.5610063556 | C71: 3.524906891 | D71: -0.9274302191 | E71: -0.3739962415 | F71: 0.9599133609 | G71: -7.364181201
A72: 68 | B72: 0.3819626088 | C72: 2.399941852 | D72: -0.7373544372 | E72: 0.6755060577 | F72: 0.2225589237 | G72: -6.688675144
A73: 69 | B73: 0.1293240402 | C73: 0.8125669094 | D73: 0.6876369839 | E73: 0.7260546663 | F73: 0.9101959076 | G73: -5.962620477
A74: 70 | B74: 0.8436588395 | C74: 5.300864825 | D74: 0.5550938942 | E74: -0.8317876944 | F74: 1.465289802 | G74: -6.794408172
A75: 71 | B75: 0.9149838886 | C75: 5.749013325 | D75: 0.8606904917 | E75: -0.5091285471 | F75: 2.325980294 | G75: -7.303536719
A76: 72 | B76: 0.7452790195 | C76: 4.682726185 | D76: -0.02965844561 | E76: -0.9995600915 | F76: 2.296321848 | G76: -8.30309681
A77: 73 | B77: 0.2636516552 | C77: 1.656572206 | D77: -0.08567073507 | E77: 0.9963235043 | F77: 2.210651113 | G77: -7.306773306
A78: 74 | B78: 0.5293098397 | C78: 3.325751808 | D78: -0.9830905738 | E78: -0.1831199707 | F78: 1.227560539 | G78: -7.489893277
A79: 75 | B79: 0.3311769149 | C79: 2.080845926 | D79: -0.4882205337 | E79: 0.8727202934 | F79: 0.7393400053 | G79: -6.617172983
A80: 76 | B80: 0.5985534914 | C80: 3.760822503 | D80: -0.8143257 | E80: -0.580408179 | F80: -0.07498569468 | G80: -7.197581163
A81: 77 | B81: 0.5186319982 | C81: 3.258660951 | D81: -0.9931553294 | E81: -0.1168010774 | F81: -1.068141024 | G81: -7.31438224
A82: 78 | B82: 0.6055542625 | C82: 3.804809645 | D82: =COS(C82) -> -0.7880157557 | E82: =SIN(C82) -> -0.6156550729 | F82: -1.85615678 | G82: -7.930037313
A83: 79 | B83: 0.9184663189 | C83: 5.77089408 | D83: =COS(C83) -> 0.8716236927 | E83: =SIN(C83) -> -0.4901756199 | F83: -0.9845330871 | G83: -8.420212933
A84: 80 | B84: 0.7968485464 | C84: 5.006747079 | D84: 0.2901256174 | E84: -0.9569885716 | F84: -0.6944074696 | G84: -9.377201504
A85: 81 | B85: 0.4944765543 | C85: 3.106887821 | D85: -0.9993978477 | E85: 0.0346978668 | F85: -1.693805317 | G85: -9.342503637
A86: 82 | B86: 0.163062786 | C86: 1.024553701 | D86: 0.519480293 | E86: 0.8544824312 | F86: -1.174325024 | G86: -8.488021206
A87: 83 | B87: 0.9158466399 | C87: 5.754434151 | D87: 0.8634377298 | E87: -0.5044554358 | F87: -0.3108872945 | G87: -8.992476642
A88: 84 | B88: 0.002403511 | C88: 0.015101705 | D88: 0.9998859714 | E88: 0.01510113098 | F88: 0.6889986769 | G88: -8.977375511
A89: 85 | B89: 0.4685769469 | C89: 2.944155788 | D89: -0.9805725742 | E89: 0.1961566384 | F89: -0.2915738972 | G89: -8.781218873
A90: 86 | B90: 0.08253969189 | C90: 0.5186121794 | D90: 0.8685079242 | E90: 0.4956752823 | F90: 0.576934027 | G90: -8.28554359
A91: 87 | B91: 0.3853265193 | C91: 2.421077925 | D91: -0.7514662253 | E91: 0.6597715607 | F91: -0.1745321983 | G91: -7.62577203
A92: 88 | B92: 0.1445147996 | C92: 0.9080132655 | D92: 0.6153130715 | E92: 0.7882828325 | F92: 0.4407808733 | G92: -6.837489197
A93: 89 | B93: 0.4841091363 | C93: 3.041747412 | D93: -0.9950196034 | E93: 0.09967943003 | F93: -0.5542387302 | G93: -6.737809767
A94: 90 | B94: 0.3741526529 | C94: 2.350870451 | D94: -0.7033321132 | E94: 0.710861406 | F94: -1.257570843 | G94: -6.026948361
A95: 91 | B95: 0.5646326918 | C95: 3.547691833 | D95: -0.9186687446 | E95: -0.3950287809 | F95: -2.176239588 | G95: -6.421977142
A96: 92 | B96: 0.6929909984 | C96: 4.354190859 | D96: -0.3505872896 | E96: -0.9365300595 | F96: -2.526826878 | G96: -7.358507201
A97: 93 | B97: 0.4334868822 | C97: 2.723678409 | D97: -0.9139374423 | E97: 0.4058550869 | F97: -3.44076432 | G97: -6.952652115
A98: 94 | B98: 0.8150881198 | C98: 5.121349699 | D98: 0.3976559659 | E98: -0.9175345948 | F98: -3.043108354 | G98: -7.870186709
A99: 95 | B99: 0.7841867859 | C99: 4.927190891 | D99: 0.2131538957 | E99: -0.9770186369 | F99: -2.829954458 | G99: -8.847205346
A100: 96 | B100: 0.4719294511 | C100: 2.965220193 | D100: -0.984486655 | E100: 0.1754594715 | F100: -3.814441113 | G100: -8.671745875
A101: 97 | B101: 0.3694539072 | C101: 2.321347361 | D101: -0.6820418422 | E101: 0.7313131514 | F101: -4.496482955 | G101: -7.940432723
A102: 98 | B102: 0.1832048578 | C102: 1.15111007 | D102: 0.4074739571 | E102: 0.9132168276 | F102: -4.089008998 | G102: -7.027215896
A103: 99 | B103: 0.01970763739 | C103: 0.1238267377 | D103: 0.9923432605 | E103: 0.1235105397 | F103: -3.096665738 | G103: -6.903705356
A104: 100 | B104: 0.8659052712 | C104: 5.440643278 | D104: 0.6655677664 | E104: -0.7463374225 | F104: =F103+D104 -> -2.431097971 | G104: =G103+E104 -> -7.650042778

Sheet DataLogN100
A1: √N | B1: AvgΔX | C1: AvgΔY | D1: AvgR | F1: GO TO Worksheet: | G1: N=100 | H1: DataLogN100 | I1: N=169 | J1: DataLogN169 | K1: N=256 | L1: DataLogN256
A2: =SQRT(A5) -> 10 | B2: =AVERAGE(B5:B1048576) -> -3.97389545 | C2: =AVERAGE(C5:C1048576) -> -6.002536114 | D2: =AVERAGE(D5:D1048576) -> 7.878419971
A4: N | B4: ΔX | C4: ΔX | D4: R
A5: 100 | B5: -2.694267842 | C5: -9.614699211 | D5: 9.985064853
A6: 100 | B6: -5.253523057 | C6: -2.390373017 | D6: 5.771775089

Sheet N=169
M1: N | N1: ΔX | O1: ΔY | P1: R
M2: =A173 -> 169 | N2: =B173 -> 0.9471292281 | O2: 5.95098845 | P2: =SQRT(F173^2+G173^2) -> 1.971964134
A4: N | B4: Random Seq | C4: Random Angles | D4: Δx | E4: Δy | F4: ΔX | G4: ΔY
A5: 1 | B5: 0 | C5: =B5*2*3.14159265359 -> 0 | D5: 0 | E5: =SIN(C5) -> 0 | F5: 0 | G5: =E5 -> 0
A6: 2 | B6: =RAND() -> 0.8682750587 | C6: =B6*2*3.14159265359 -> 5.455533091 | D6: =COS(C6) -> 0.676606402 | E6: =SIN(C6) -> -0.7363448763 | F6: =F5+D6 -> 0.676606402 | G6: =G5+E6 -> -0.7363448763
A7: 3 | B7: 0.7150783633 | C7: 4.492969866 | D7: -0.2176627019 | E7: -0.976024051 | F7: =F6+D7 -> 0.4589437001 | G7: =G6+E7 -> -1.712368927
A8: 4 | B8: 0.3732024457 | C8: 2.344900123 | D8: -0.6990755278 | E8: 0.715047835 | F8: =F7+D8 -> -0.2401318277 | G8: =G7+E8 -> -0.9973210923
A9: 5 | B9: 0.7546234052 | C9: 4.741438692 | D9: 0.02904562606 | E9: -0.9995780868 | F9: -0.2110862016 | G9: -1.996899179
A10: 6 | B10: 0.6070287768 | C10: 3.814074292 | D10: -0.7822781915 | E10: -0.6229292345 | F10: -0.9933643931 | G10: -2.619828414
A11: 7 | B11: 0.7441981686 | C11: 4.675934999 | D11: -0.03644590817 | E11: -0.9993356272 | F11: -1.029810301 | G11: -3.619164041
A12: 8 | B12: 0.8735066568 | C12: 5.488404192 | D12: 0.7004410032 | E12: -0.7137103061 | F12: -0.3293692981 | G12: -4.332874347
A13: 9 | B13: 0.2641272852 | C13: 1.659560678 | D13: -0.0886478327 | E13: 0.996063031 | F13: -0.4180171308 | G13: -3.336811316
A14: 10 | B14: 0.5082627855 | C14: 3.193509266 | D14: -0.9986526354 | E14: -0.0518932932 | F14: -1.416669766 | G14: -3.388704609
A15: 11 | B15: 0.9809203764 | C15: 6.163304497 | D15: 0.9928228972 | E15: -0.119593874 | F15: -0.4238468689 | G15: -3.508298483
A16: 12 | B16: 0.07324271852 | C16: 0.4601975729 | D16: 0.8959647679 | E16: 0.444125134 | F16: 0.472117899 | G16: -3.064173349
A17: 13 | B17: 0.449419631 | C17: 2.823786822 | D17: -0.9499233446 | E17: 0.3124830226 | F17: -0.4778054456 | G17: -2.751690327
A18: 14 | B18: 0.878719721 | C18: 5.52115884 | D18: 0.7234384467 | E18: -0.690388886 | F18: 0.2456330011 | G18: -3.442079212
A19: 15 | B19: 0.3740775657 | C19: 2.350398665 | D19: -0.7029966603 | E19: 0.7111931493 | F19: -0.4573636592 | G19: -2.730886063
A20: 16 | B20: 0.6903855815 | C20: 4.337820542 | D20: -0.3658709235 | E20: -0.9306656045 | F20: -0.8232345827 | G20: -3.661551668
A21: 17 | B21: 0.1431143184 | C21: 0.8992137823 | D21: 0.6222256415 | E21: 0.7828379468 | F21: -0.2010089412 | G21: -2.878713721
A22: 18 | B22: 0.3584840696 | C22: 2.252421839 | D22: -0.6300561464 | E22: 0.7765495814 | F22: -0.8310650876 | G22: -2.102164139
A23: 19 | B23: 0.2259383627 | C23: 1.419612601 | D23: 0.1506084614 | E23: 0.9885934915 | F23: -0.6804566262 | G23: -1.113570648
A24: 20 | B24: 0.3514315475 | C24: 2.208109536 | D24: -0.5950382246 | E24: 0.8036974003 | F24: =F23+D24 -> -1.275494851 | G24: -0.3098732477
A25: 21 | B25: 0.9771982426 | C25: 6.13991764 | D25: 0.98975473 | E25: -0.1427780603 | F25: -0.2857401209 | G25: -0.452651308
A26: 22 | B26: 0.9684613499 | C26: 6.085022124 | D26: 0.9804298435 | E26: -0.1968687938 | F26: 0.6946897226 | G26: -0.6495201018
A27: 23 | B27: 0.3444735365 | C27: 2.164391063 | D27: -0.5593444344 | E27: 0.8289353435 | F27: 0.1353452882 | G27: 0.1794152417
A28: 24 | B28: 0.1057826668 | C28: 0.6646520977 | D28: 0.7871314138 | E28: 0.6167853252 | F28: 0.922476702 | G28: 0.7962005669
A29: 25 | B29: 0.8334458423 | C29: 5.236694671 | D29: 0.5006120813 | E29: -0.86567173 | F29: 1.423088783 | G29: -0.06947116306
A30: 26 | B30: 0.05050866626 | C30: 0.3173553097 | D30: 0.9500640286 | E30: 0.3120550297 | F30: 2.373152812 | G30: 0.2425838667
A31: 27 | B31: 0.3062953519 | C31: 1.924510455 | D31: -0.3463843846 | E31: 0.9380926703 | F31: 2.026768427 | G31: 1.180676537
A32: 28 | B32: 0.8501191513 | C32: 5.341456161 | D32: 0.5883907579 | E32: -0.8085767224 | F32: 2.615159185 | G32: 0.3720998146
A33: 29 | B33: 0.6673859961 | C33: 4.193309885 | D33: -0.4960807487 | E33: -0.8682763908 | F33: 2.119078436 | G33: -0.4961765762
A34: 30 | B34: 0.6705716754 | C34: 4.213326098 | D34: -0.47860293 | E34: -0.8780314547 | F34: 1.640475506 | G34: -1.374208031
A35: 31 | B35: 0.3528906086 | C35: 2.217277087 | D35: -0.602381054 | E35: 0.7982086606 | F35: 1.038094452 | G35: -0.5759993703
A36: 32 | B36: 0.6866902684 | C36: 4.314602205 | D36: =COS(C36) -> -0.3873788752 | E36: =SIN(C36) -> -0.9219206078 | F36: 0.6507155772 | G36: -1.497919978
A37: 33 | B37: 0.1389218919 | C37: 0.8728719902 | D37: 0.6426287457 | E37: =SIN(C37) -> 0.7661777178 | F37: 1.293344323 | G37: -0.7317422602
A38: 34 | B38: 0.2931733796 | C38: 1.842062671 | D38: -0.2679516886 | E38: 0.9634323498 | F38: 1.025392634 | G38: 0.2316900895
A39: 35 | B39: 0.1302487356 | C39: 0.8183769416 | D39: 0.6834070006 | E39: 0.7300375823 | F39: 1.708799635 | G39: 0.9617276718
A40: 36 | B40: 0.6900179789 | C40: 4.335510827 | D40: -0.3680195184 | E40: -0.929818065 | F40: =F39+D40 -> 1.340780116 | G40: 0.03190960679
A41: 37 | B41: 0.08372610786 | C41: 0.5260666507 | D41: 0.8647888303 | E41: 0.5021357178 | F41: 2.205568947 | G41: 0.5340453246
A42: 38 | B42: 0.9084227762 | C42: 5.70778864 | D42: 0.8389765151 | E42: -0.5441676278 | F42: 3.044545462 | G42: -0.01012230327
A43: 39 | B43: 0.830496664 | C43: 5.218164437 | D43: 0.4844859543 | E43: -0.8747990398 | F43: 3.529031416 | G43: -0.8849213431
A44: 40 | B44: 0.2533011215 | C44: 1.591537885 | D44: -0.02074007067 | E44: 0.9997849016 | F44: 3.508291345 | G44: 0.1148635585
A45: 41 | B45: 0.4658881215 | C45: 2.9272614 | D45: -0.9771188511 | E45: 0.2126940312 | F45: 2.531172494 | G45: 0.3275575897
A46: 42 | B46: 0.9289899873 | C46: 5.837016239 | D46: 0.902106814 | E46: -0.4315127995 | F46: 3.433279308 | G46: -0.1039552098
A47: 43 | B47: 0.5898397494 | C47: 3.706072447 | D47: -0.8448670131 | E47: -0.5349763829 | F47: 2.588412295 | G47: -0.6389315927
A48: 44 | B48: 0.2568502522 | C48: 1.613837731 | D48: -0.04302811565 | E48: 0.9990738618 | F48: 2.54538418 | G48: 0.3601422691
A49: 45 | B49: 0.5661387501 | C49: 3.557154677 | D49: -0.914889574 | E49: -0.4037041831 | F49: 1.630494606 | G49: -0.04356191401
A50: 46 | B50: 0.9736293855 | C50: 6.11749385 | D50: 0.986304546 | E50: -0.1649343581 | F50: 2.616799152 | G50: -0.2084962721
A51: 47 | B51: 0.4836714826 | C51: 3.038997553 | D51: -0.9947417373 | E51: 0.1024152136 | F51: 1.622057414 | G51: -0.1060810585
A52: 48 | B52: 0.8198306879 | C52: 5.151148133 | D52: 0.4248164783 | E52: -0.9052794926 | F52: 2.046873893 | G52: -1.011360551
A53: 49 | B53: 0.2479003475 | C53: 1.557603821 | D53: 0.01319212334 | E53: 0.9999129802 | F53: 2.060066016 | G53: -0.01144757096
A54: 50 | B54: 0.2375134871 | C54: 1.492341252 | D54: 0.0783746148 | E54: 0.9969239789 | F54: 2.138440631 | G54: 0.985476408
A55: 51 | B55: 0.2709082743 | C55: 1.702166889 | D55: =COS(C55) -> -0.1309930172 | E55: =SIN(C55) -> 0.9913832909 | F55: 2.007447614 | G55: 1.976859699
A56: 52 | B56: 0.05310598652 | C56: 0.3336747542 | D56: 0.9448451801 | E56: =SIN(C56) -> 0.3275173058 | F56: =F55+D56 -> 2.952292794 | G56: 2.304377005
A57: 53 | B57: 0.3859167731 | C57: 2.424786599 | D57: -0.7539079293 | E57: 0.6569800866 | F57: 2.198384864 | G57: 2.961357091
A58: 54 | B58: 0.2543962082 | C58: 1.598418518 | D58: -0.02761867858 | E58: 0.9996185315 | F58: 2.170766186 | G58: 3.960975623
A59: 55 | B59: 0.6538484256 | C59: 4.108250821 | D59: -0.5680529996 | E59: -0.8229919742 | F59: 1.602713186 | G59: 3.137983649
A60: 56 | B60: 0.09132151167 | C60: 0.5737899803 | D60: 0.8398497387 | E60: 0.5428189536 | F60: 2.442562925 | G60: 3.680802602
A61: 57 | B61: 0.8743450624 | C61: 5.49367205 | D61: 0.7041909914 | E61: -0.7100105968 | F61: 3.146753916 | G61: 2.970792005
A62: 58 | B62: 0.8112683785 | C62: 5.097349556 | D62: 0.3755225978 | E62: -0.9268132382 | F62: 3.522276514 | G62: 2.043978767
A63: 59 | B63: 0.7359385281 | C63: 4.624038147 | D63: -0.08823593619 | E63: -0.9960996032 | F63: 3.434040578 | G63: 1.047879164
A64: 60 | B64: 0.9975213429 | C64: 6.267611446 | D64: 0.9998787299 | E64: -0.01557323207 | F64: 4.433919308 | G64: 1.032305932
A65: 61 | B65: 0.1987378987 | C65: 1.248707045 | D65: 0.3165490928 | E65: 0.9485761287 | F65: 4.750468401 | G65: 1.98088206
A66: 62 | B66: 0.8112288186 | C66: 5.097100994 | D66: 0.3752922158 | E66: -0.9269065502 | F66: 5.125760616 | G66: 1.05397551
A67: 63 | B67: 0.9877755449 | C67: 6.20637679 | D67: 0.9970516758 | E67: -0.07673301656 | F67: 6.122812292 | G67: 0.9772424937
A68: 64 | B68: 0.7195463372 | C68: 4.521042974 | D68: -0.1901805075 | E68: -0.9817491403 | F68: 5.932631785 | G68: -0.00450664662
A69: 65 | B69: 0.2888479457 | C69: 1.814885169 | D69: -0.2416722756 | E69: 0.9703579294 | F69: 5.690959509 | G69: 0.9658512828
A70: 66 | B70: =RAND() -> 0.6436116915 | C70: =B70*2*3.14159265359 -> 4.043931524 | D70: =COS(C70) -> -0.6197761697 | E70: -0.7847786309 | F70: 5.071183339 | G70: 0.181072652
A71: 67 | B71: 0.5099181862 | C71: 3.203910455 | D71: -0.9980588741 | E71: -0.06227747444 | F71: 4.073124465 | G71: 0.1187951775
A72: 68 | B72: 0.4067518656 | C72: 2.555697346 | D72: -0.8332173632 | E72: 0.5529455901 | F72: =F71+D72 -> 3.239907102 | G72: 0.6717407676
A73: 69 | B73: 0.3363271977 | C73: 2.113206107 | D73: -0.5162013863 | E73: 0.8564672374 | F73: 2.723705716 | G73: 1.528208005
A74: 70 | B74: 0.06529700242 | C74: 0.4102731662 | D74: 0.917011902 | E74: 0.3988598395 | F74: 3.640717618 | G74: 1.927067845
A75: 71 | B75: 0.3765443613 | C75: 2.365897998 | D75: -0.7139348003 | E75: 0.7002121827 | F75: 2.926782817 | G75: 2.627280027
A76: 72 | B76: 0.6316645313 | C76: 3.968865302 | D76: -0.6768858455 | E76: -0.7360880057 | F76: 2.249896972 | G76: 1.891192022
A77: 73 | B77: 0.9819745345 | C77: 6.169927967 | D77: 0.9935932403 | E77: -0.1130153656 | F77: 3.243490212 | G77: 1.778176656
A78: 74 | B78: 0.1350006123 | C78: 0.8482338639 | D78: 0.6613089793 | E78: 0.750113614 | F78: 3.904799191 | G78: 2.52829027
A79: 75 | B79: 0.2363407823 | C79: 1.484972931 | D79: 0.08571807719 | E79: 0.9963194323 | F79: 3.990517269 | G79: 3.524609702
A80: 76 | B80: 0.6766891102 | C80: 4.251763075 | D80: -0.4445088643 | E80: -0.8957744524 | F80: 3.546008404 | G80: 2.62883525
A81: 77 | B81: 0.5004111114 | C81: 3.144175743 | D81: -0.9999966638 | E81: -0.002583086405 | F81: 2.54601174 | G81: 2.626252164
A82: 78 | B82: 0.46622386 | C82: 2.929370907 | D82: =COS(C82) -> -0.9775653561 | E82: =SIN(C82) -> 0.2106323206 | F82: 1.568446384 | G82: 2.836884484
A83: 79 | B83: 0.2725067652 | C83: 1.712210503 | D83: =COS(C83) -> -0.1409433147 | E83: =SIN(C83) -> 0.9900176675 | F83: 1.42750307 | G83: 3.826902152
A84: 80 | B84: 0.5403604605 | C84: 3.395184906 | D84: -0.9680174346 | E84: -0.2508829335 | F84: 0.459485635 | G84: 3.576019218
A85: 81 | B85: 0.2780392163 | C85: 1.746971919 | D85: -0.1752656537 | E85: 0.9845211784 | F85: 0.2842199813 | G85: 4.560540397
A86: 82 | B86: 0.9861187767 | C86: 6.195967009 | D86: 0.9961988947 | E86: -0.08710776174 | F86: 1.280418876 | G86: 4.473432635
A87: 83 | B87: 0.3103155557 | C87: 1.94977014 | D87: -0.369967291 | E87: 0.9290447802 | F87: 0.910451585 | G87: 5.402477415
A88: 84 | B88: 0.7776337528 | C88: 4.88601697 | D88: 0.1727569193 | E88: -0.9849644901 | F88: =F87+D88 -> 1.083208504 | G88: 4.417512925
A89: 85 | B89: 0.5815820152 | C89: 3.654187573 | D89: -0.8714747903 | E89: -0.490440302 | F89: 0.211733714 | G89: 3.927072623
A90: 86 | B90: 0.9397606924 | C90: 5.904690575 | D90: 0.9292219178 | E90: -0.3695221611 | F90: 1.140955632 | G90: 3.557550462
A91: 87 | B91: 0.4809755261 | C91: 3.022058359 | D91: -0.9928642788 | E91: 0.1192498383 | F91: 0.148091353 | G91: 3.6768003
A92: 88 | B92: 0.1801978991 | C92: 1.132216792 | D92: 0.4246538674 | E92: 0.9053557825 | F92: 0.5727452204 | G92: 4.582156082
A93: 89 | B93: 0.5798005192 | C93: 3.642994103 | D93: -0.8769098094 | E93: -0.4806549554 | F93: -0.304164589 | G93: 4.101501127
A94: 90 | B94: 0.9339464025 | C94: 5.868158314 | D94: 0.9151054366 | E94: -0.4032146325 | F94: 0.6109408476 | G94: 3.698286495
A95: 91 | B95: 0.8087417845 | C95: 5.081474498 | D95: 0.3607626836 | E95: -0.9326576468 | F95: 0.9717035312 | G95: 2.765628848
A96: 92 | B96: 0.7002991178 | C96: 4.400109128 | D96: -0.3072290222 | E96: -0.9516356067 | F96: 0.664474509 | G96: 1.813993241
A97: 93 | B97: 0.5741209916 | C97: 3.607308579 | D97: -0.8935002993 | E97: -0.449062596 | F97: -0.2290257903 | G97: 1.364930645
A98: 94 | B98: 0.561632794 | C98: 3.528842919 | D98: -0.9259509791 | E98: -0.3776437268 | F98: -1.154976769 | G98: 0.9872869184
A99: 95 | B99: 0.08653216217 | C99: 0.54369761 | D99: 0.8558017479 | E99: 0.5173039419 | F99: -0.2991750215 | G99: 1.50459086
A100: 96 | B100: 0.8321410686 | C100: 5.228496536 | D100: 0.493498444 | E100: -0.8697466791 | F100: 0.1943234225 | G100: 0.6348441812
A101: 97 | B101: 0.3877845219 | C101: 2.436522011 | D101: -0.7615657708 | E101: 0.6480876304 | F101: -0.5672423483 | G101: 1.282931812
A102: 98 | B102: 0.1573910309 | C102: 0.9889170131 | D102: 0.5495949438 | E102: 0.8354312645 | F102: -0.01764740445 | G102: 2.118363076
A103: 99 | B103: 0.2657907827 | C103: 1.670012741 | D103: -0.09905371484 | E103: 0.9950820879 | F103: -0.1167011193 | G103: 3.113445164
A104: 100 | B104: 0.1752644029 | C104: 1.101218721 | D104: 0.4525096514 | E104: 0.8917595053 | F104: =F103+D104 -> 0.3358085321 | G104: =G103+E104 -> 4.005204669
A105: 101 | B105: 0.52431149 | C105: =B105*2*3.14159265359 -> 3.29434625 | D105: =COS(C105) -> -0.9883558375 | E105: =SIN(C105) -> -0.1521602392 | F105: =F104+D105 -> -0.6525473054 | G105: =G104+E105 -> 3.85304443
A106: 102 | B106: 0.6737165741 | C106: 4.23308608 | D106: -0.4611607399 | E106: -0.8873166131 | F106: -1.113708045 | G106: 2.965727817
A107: 103 | B107: 0.5064334499 | C107: 3.182015212 | D107: -0.9991831196 | E107: -0.04041155059 | F107: -2.112891165 | G107: 2.925316266
A108: 104 | B108: 0.7363615334 | C108: 4.626695967 | D108: -0.08558817347 | E108: -0.9963306 | F108: -2.198479338 | G108: 1.928985666
A109: 105 | B109: 0.6526519782 | C109: 4.10073332 | D109: -0.5742237327 | E109: -0.8186984211 | F109: -2.772703071 | G109: 1.110287245
A110: 106 | B110: 0.3600730816 | C110: 2.262405896 | D110: -0.6377777307 | E110: 0.770220466 | F110: -3.410480802 | G110: 1.880507711
A111: 107 | B111: 0.8524858075 | C111: 5.3563263 | D111: 0.6003489116 | E111: -0.7997381974 | F111: -2.81013189 | G111: 1.080769514
A112: 108 | B112: 0.6416850704 | C112: 4.031826206 | D112: -0.6292305221 | E112: -0.7772187273 | F112: -3.439362412 | G112: 0.3035507866
A113: 109 | B113: 0.8204683701 | C113: 5.155154808 | D113: 0.4284402196 | E113: -0.9035701291 | F113: -3.010922193 | G113: -0.6000193426
A114: 110 | B114: 0.5727865161 | C114: 3.598923822 | D114: -0.8972341277 | E114: -0.4415551155 | F114: -3.908156321 | G114: -1.041574458
A115: 111 | B115: 0.5852876684 | C115: 3.677470878 | D115: -0.8598205426 | E115: -0.5105963519 | F115: -4.767976863 | G115: -1.55217081
A116: 112 | B116: 0.6746466893 | C116: 4.238930166 | D116: -0.4559673395 | E116: -0.8899965086 | F116: -5.223944203 | G116: -2.442167319
A117: 113 | B117: 0.7851338061 | C117: 4.933141195 | D117: 0.2189636451 | E117: -0.9757330178 | F117: -5.004980558 | G117: -3.417900336
A118: 114 | B118: 0.09004541436 | C118: 0.5657720245 | D118: 0.8441749946 | E118: 0.5360676995 | F118: -4.160805563 | G118: -2.881832637
A119: 115 | B119: 0.4440744713 | C119: 2.790202193 | D119: -0.9388950192 | E119: 0.3442036358 | F119: -5.099700582 | G119: -2.537629001
A120: 116 | B120: 0.1152102968 | C120: 0.7238876439 | D120: 0.7492366015 | E120: 0.6623024347 | F120: -4.350463981 | G120: -1.875326566
A121: 117 | B121: 0.5144470824 | C121: 3.232366349 | D121: -0.9958828963 | E121: -0.09064908673 | F121: -5.346346877 | G121: -1.965975653
A122: 118 | B122: 0.1146251744 | C122: 0.7202112115 | D122: 0.7516664427 | E122: 0.6595434473 | F122: -4.594680434 | G122: -1.306432206
A123: 119 | B123: 0.1655031804 | C123: 1.039887151 | D123: 0.5063175752 | E123: 0.8623470955 | F123: -4.088362859 | G123: -0.4440851104
A124: 120 | B124: 0.8681702681 | C124: 5.454874673 | D124: 0.6761214323 | E124: -0.7367902068 | F124: -3.412241427 | G124: -1.180875317
A125: 121 | B125: 0.4768100763 | C125: 2.995886066 | D125: -0.9894035623 | E125: 0.1451915663 | F125: -4.401644989 | G125: -1.035683751
A126: 122 | B126: 0.2156875615 | C126: 1.355204917 | D126: 0.213925184 | E126: 0.9768500477 | F126: -4.187719805 | G126: -0.05883370326
A127: 123 | B127: 0.3030065781 | C127: 1.903846479 | D127: -0.3269270901 | E127: 0.9450495636 | F127: -4.514646895 | G127: 0.8862158604
A128: 124 | B128: 0.6876175352 | C128: 4.320428394 | D128: -0.3820010474 | E128: -0.9241618904 | F128: -4.896647943 | G128: -0.03794603005
A129: 125 | B129: 0.2403316188 | C129: 1.510048096 | D129: 0.06071087371 | E129: 0.9981553936 | F129: -4.835937069 | G129: 0.9602093636
A130: 126 | B130: 0.5496155545 | C130: 3.453336377 | D130: -0.9518001846 | E130: -0.3067187778 | F130: -5.787737253 | G130: 0.6534905858
A131: 127 | B131: 0.388534153 | C131: 2.441232081 | D131: -0.7646098505 | E131: 0.6444934263 | F131: -6.552347104 | G131: 1.297984012
A132: 128 | B132: 0.85188219 | C132: 5.35253366 | D132: 0.5973114819 | E132: -0.8020093476 | F132: -5.955035622 | G132: 0.4959746644
A133: 129 | B133: 0.1853500943 | C133: 1.164588989 | D133: 0.3951281399 | E133: 0.9186260137 | F133: -5.559907482 | G133: 1.414600678
A134: 130 | B134: =RAND() -> 0.5943899913 | C134: 3.73466246 | D134: -0.8292288459 | E134: -0.5589092243 | F134: -6.389136328 | G134: 0.8556914538
A135: 131 | B135: 0.247858633 | C135: 1.557341721 | D135: 0.01345419947 | E135: 0.9999094882 | F135: -6.375682129 | G135: 1.855600942
A136: 132 | B136: 0.4886198029 | C136: 3.070088767 | D136: -0.9974446861 | E136: 0.07144297158 | F136: -7.373126815 | G136: 1.927043914
A137: 133 | B137: 0.3330885444 | C137: 2.092857048 | D137: -0.498667415 | E137: 0.8667934063 | F137: -7.87179423 | G137: 2.79383732
A138: 134 | B138: 0.9875641862 | C138: 6.205048785 | D138: 0.9969488947 | E138: -0.07805703864 | F138: -6.874845335 | G138: 2.715780281
A139: 135 | B139: 0.3948266935 | C139: 2.48076928 | D139: -0.7894871393 | E139: 0.6137671031 | F139: -7.664332474 | G139: 3.329547384
A140: 136 | B140: 0.9413066931 | C140: 5.914404384 | D140: 0.9327674896 | E140: -0.3604785852 | F140: -6.731564985 | G140: 2.969068799
A141: 137 | B141: 0.9562349893 | C141: 6.008201635 | D141: 0.9624296313 | E141: -0.2715312226 | F141: -5.769135353 | G141: 2.697537577
A142: 138 | B142: 0.1477888076 | C142: 0.9285844646 | D142: 0.5989681043 | E142: 0.8007728829 | F142: -5.170167249 | G142: 3.498310459
A143: 139 | B143: 0.8698606676 | C143: 5.465495766 | D143: 0.6839086672 | E143: -0.7295676356 | F143: -4.486258582 | G143: 2.768742824
A144: 140 | B144: 0.2287637324 | C144: 1.437364922 | D144: 0.133035823 | E144: 0.9911112298 | F144: -4.353222759 | G144: 3.759854054
A145: 141 | B145: 0.0219769739 | C145: 0.1380853995 | D145: 0.9904813505 | E145: 0.137646992 | F145: -3.362741408 | G145: 3.897501046
A146: 142 | B146: 0.2237934068 | C146: 1.406135446 | D146: 0.1639178084 | E146: 0.9864739997 | F146: -3.1988236 | G146: 4.883975045
A147: 143 | B147: 0.7024592448 | C147: 4.413681606 | D147: -0.2942850679 | E147: -0.9557176878 | F147: -3.493108668 | G147: 3.928257357
A148: 144 | B148: 0.704593491 | C148: 4.42709147 | D148: -0.281442948 | E148: -0.959577963 | F148: -3.774551616 | G148: 2.968679394
A149: 145 | B149: 0.09312893758 | C149: 0.5851463723 | D149: 0.8336312503 | E149: 0.5523214087 | F149: -2.940920366 | G149: 3.521000803
A150: 146 | B150: 0.05980766458 | C150: 0.3757826393 | D150: 0.9302206777 | E150: 0.3670006687 | F150: -2.010699688 | G150: 3.888001472
A151: 147 | B151: 0.6003256898 | C151: 3.771957554 | D151: -0.8078124756 | E151: -0.589439568 | F151: -2.818512164 | G151: 3.298561904
A152: 148 | B152: 0.8243463041 | C152: 5.179520586 | D152: 0.4503270565 | E152: -0.892863675 | F152: -2.368185107 | G152: 2.405698229
A153: 149 | B153: 0.4663108308 | C153: 2.929917361 | D153: -0.977680311 | E153: 0.2100980949 | F153: -3.345865418 | G153: 2.615796324
A154: 150 | B154: 0.7244618671 | C154: 4.551928159 | D154: -0.159773125 | E154: -0.9871537613 | F154: -3.505638543 | G154: 1.628642563
A155: 151 | B155: 0.827684291 | C155: 5.200493776 | D155: 0.4689528433 | E155: -0.8832232055 | F155: -3.0366857 | G155: 0.745419357
A156: 152 | B156: 0.7343950207 | C156: 4.614340004 | D156: -0.09789195128 | E156: -0.9951970488 | F156: -3.134577651 | G156: -0.2497776918
A157: 153 | B157: 0.7115530427 | C157: 4.470819623 | D157: -0.2392267095 | E157: -0.9709637385 | F157: -3.37380436 | G157: -1.22074143
A158: 154 | B158: 0.1912127418 | C158: 1.20142509 | D158: 0.3610291476 | E158: 0.9325545317 | F158: -3.012775213 | G158: -0.2881868986
A159: 155 | B159: 0.04584163232 | C159: 0.2880314706 | D159: 0.9588049238 | E159: 0.2840653411 | F159: -2.053970289 | G159: -0.004121557502
A160: 156 | B160: 0.8153292 | C160: 5.12286445 | D160: 0.3990453457 | E160: -0.9169311927 | F160: -1.654924943 | G160: -0.9210527502
A161: 157 | B161: 0.3446854789 | C161: 2.165722736 | D161: -0.5604478091 | E161: 0.8281897447 | F161: -2.215372752 | G161: -0.09286300547
A162: 158 | B162: 0.9863196731 | C162: 6.197229278 | D162: 0.9963080545 | E162: -0.08585022101 | F162: -1.219064698 | G162: -0.1787132265
A163: 159 | B163: 0.1640681038 | C163: 1.030870299 | D163: 0.5140725433 | E163: 0.857746711 | F163: -0.7049921545 | G163: 0.6790334845
A164: 160 | B164: 0.1137246676 | C164: 0.7145531605 | D164: 0.7553861216 | E164: 0.6552799458 | F164: 0.05039396708 | G164: 1.33431343
A165: 161 | B165: 0.569909234 | C165: 3.580845326 | D165: -0.9050697271 | E165: -0.4252631999 | F165: -0.85467576 | G165: 0.9090502304
A166: 162 | B166: 0.3241128941 | C166: 2.036461374 | D166: -0.4490171361 | E166: 0.8935231455 | F166: -1.303692896 | G166: 1.802573376
A167: 163 | B167: 0.7742066997 | C167: 4.86448416 | D167: 0.1515094562 | E167: -0.9884558082 | F167: -1.15218344 | G167: 0.8141175677
A168: 164 | B168: 0.4692338978 | C168: 2.948283532 | D168: -0.9813739026 | E168: 0.1921074265 | F168: -2.133557342 | G168: 1.006224994
A169: 165 | B169: 0.9302525932 | C169: =B169*2*3.14159265359 -> 5.844949426 | D169: =COS(C169) -> 0.9055016627 | E169: =SIN(C169) -> -0.424342714 | F169: =F168+D169 -> -1.22805568 | G169: =G168+E169 -> 0.5818822802
A170: 166 | B170: 0.4056485004 | C170: 2.548764697 | D170: -0.8293639939 | E170: 0.5587086589 | F170: -2.057419674 | G170: 1.140590939
A171: 167 | B171: 0.1335365506 | C171: 0.8390348929 | D171: 0.6681811753 | E171: 0.7439986001 | F171: -1.389238498 | G171: 1.884589539
A172: 168 | B172: 0.531245878 | C172: 3.337916295 | D172: -0.9807903327 | E172: -0.1950649205 | F172: -2.370028831 | G172: 1.689524619
A173: 169 | B173: 0.9471292281 | C173: 5.95098845 | D173: 0.945328185 | E173: -0.3261205645 | F173: -1.424700646 | G173: 1.363404054

Sheet DataLogN169
A1: √N | B1: AvgΔX | C1: AvgΔY | D1: AvgR | F1: GO TO Worksheet: | G1: N=100 | H1: DataLogN100 | I1: N=169 | J1: DataLogN169 | K1: N=256 | L1: DataLogN256
A2: =SQRT(A5) -> 13 | B2: =AVERAGE(B5:B1048576) -> 0.5133115719 | C2: =AVERAGE(C5:C1048576) -> 3.225231727 | D2: =AVERAGE(D5:D1048576) -> 7.550061298
A4: N | B4: ΔX | C4: ΔX | D4: R
A5: 169 | B5: 0.1797958999 | C5: 1.129690956 | D5: 9.306162735
A6: 169 | B6: 0.319254173 | C6: 2.005933129 | D6: 3.180213743
A7: 169 | B7: 0.8844941297 | C7: 5.55744052 | D7: 7.743771014
A8: 169 | B8: 0.669702085 | C8: 4.207862301 | D8: 9.9700977

Sheet N=256
M1: N | N1: ΔX | O1: ΔY | P1: R
M2: =A260 -> 256 | N2: =B260 -> 0.2517204879 | O2: =C260 -> 1.581606471 | P2: =SQRT(F260^2+G260^2) -> 4.417313381
A4: N | B4: Random Seq | C4: Random Angles | D4: Δx | E4: Δy | F4: ΔX | G4: ΔY
A5: 1 | B5: 0 | C5: =B5*2*3.14159265359 -> 0 | D5: 0 | E5: =SIN(C5) -> 0 | F5: 0 | G5: =E5 -> 0
A6: 2 | B6: =RAND() -> 0.9588059005 | C6: =B6*2*3.14159265359 -> 6.024355146 | D6: =COS(C6) -> 0.9666900597 | E6: =SIN(C6) -> -0.2559498554 | F6: =F5+D6 -> 0.9666900597 | G6: =G5+E6 -> -0.2559498554
A7: 3 | B7: 0.2983571035 | C7: 1.874632969 | D7: -0.2991833068 | E7: 0.9541956555 | F7: =F6+D7 -> 0.6675067529 | G7: =G6+E7 -> 0.6982458001
A8: 4 | B8: 0.1578252932 | C8: 0.9916455634 | D8: 0.5473133845 | E8: 0.8369277502 | F8: =F7+D8 -> 1.214820137 | G8: =G7+E8 -> 1.53517355
A9: 5 | B9: 0.6751982091 | C9: 4.242395467 | D9: -0.4528805022 | E9: -0.8915712258 | F9: 0.7619396353 | G9: 0.6436023245
A10: 6 | B10: 0.6317090968 | C10: 3.969145315 | D10: -0.6766797048 | E10: -0.7362775136 | F10: 0.08525993043 | G10: -0.09267518913
A11: 7 | B11: 0.872680921 | C11: 5.48321594 | D11: 0.6967286839 | E11: -0.7173347482 | F11: 0.7819886144 | G11: -0.8100099373
A12: 8 | B12: 0.3522716272 | C12: 2.213387912 | D12: -0.5992721333 | E12: 0.800545383 | F12: 0.1827164811 | G12: -0.009464554329
A13: 9 | B13: 0.390386035 | C13: 2.4528678 | D13: -0.7720570656 | E13: 0.6355532138 | F13: -0.5893405845 | G13: 0.6260886594
A14: 10 | B14: 0.1609650326 | C14: 1.011373128 | D14: 0.5306974119 | E14: 0.8475613588 | F14: -0.05864317254 | G14: 1.473650018
A15: 11 | B15: 0.03657930616 | C15: 0.229834559 | D15: 0.9737040985 | E15: 0.2278164361 | F15: 0.915060926 | G15: 1.701466454
A16: 12 | B16: 0.09574331642 | C16: 0.601572999 | D16: 0.8244464121 | E16: 0.5659400264 | F16: 1.739507338 | G16: 2.267406481
A17: 13 | B17: 0.7691511677 | C17: 4.832719316 | D17: 0.1200401609 | E17: -0.9927690365 | F17: 1.859547499 | G17: 1.274637444
A18: 14 | B18: 0.2958584834 | C18: 1.858933676 | D18: -0.2841668561 | E18: 0.9587748421 | F18: 1.575380643 | G18: 2.233412286
A19: 15 | B19: 0.206976274 | C19: 1.300470284 | D19: 0.2670456531 | E19: 0.9636838793 | F19: 1.842426296 | G19: 3.197096166
A20: 16 | B20: 0.01426740969 | C20: 0.08964477891 | D20: 0.9959845969 | E20: 0.08952476012 | F20: 2.838410893 | G20: 3.286620926
A21: 17 | B21: 0.2380438951 | C21: 1.495673904 | D21: 0.07505178542 | E21: 0.9971796375 | F21: 2.913462678 | G21: 4.283800563
A22: 18 | B22: 0.3373747373 | C22: 2.119787992 | D22: -0.5218273335 | E22: 0.8530511321 | F22: 2.391635345 | G22: 5.136851695
A23: 19 | B23: 0.1467538753 | C23: 0.9220817933 | D23: 0.604162567 | E23: 0.7968610874 | F23: 2.995797912 | G23: 5.933712783
A24: 20 | B24: 0.02231713063 | C24: 0.1402226673 | D24: 0.9901849 | E24: 0.1397635999 | F24: =F23+D24 -> 3.985982812 | G24: 6.073476383
A25: 21 | B25: 0.01156644639 | C25: 0.07267412601 | D25: 0.9973603978 | E25: 0.07261017115 | F25: 4.98334321 | G25: 6.146086554
A26: 22 | B26: 0.7759496743 | C26: 4.875435593 | D26: 0.1623251612 | E26: -0.9867373217 | F26: 5.145668371 | G26: 5.159349232
A27: 23 | B27: 0.01789620949 | C27: 0.1124452005 | D27: 0.9936846968 | E27: 0.1122083922 | F27: 6.139353068 | G27: 5.271557624
A28: 24 | B28: 0.1146230855 | C28: 0.7201980865 | D28: 0.7516750992 | E28: 0.6595335816 | F28: 6.891028167 | G28: 5.931091206
A29: 25 | B29: 0.6686924836 | C29: 4.201518788 | D29: -0.4889365176 | E29: -0.8723193691 | F29: 6.402091649 | G29: 5.058771837
A30: 26 | B30: 0.3331639087 | C30: 2.093330576 | D30: -0.4990778098 | E30: 0.8665571763 | F30: 5.903013839 | G30: 5.925329013
A31: 27 | B31: 0.3737528753 | C31: 2.348358575 | D31: -0.7015443003 | E31: 0.7126258448 | F31: 5.201469539 | G31: 6.637954858
A32: 28 | B32: 0.008792434333 | C32: 0.05524449422 | D32: 0.998474411 | E32: 0.0552163979 | F32: 6.19994395 | G32: 6.693171256
A33: 29 | B33: 0.5867889041 | C33: 3.686903421 | D33: -0.8549661422 | E33: -0.5186838108 | F33: 5.344977808 | G33: 6.174487445
A34: 30 | B34: 0.5546568899 | C34: 3.485012021 | D34: -0.9416088414 | E34: -0.336708761 | F34: 4.403368966 | G34: 5.837778684
A35: 31 | B35: 0.8790375497 | C35: 5.523155817 | D35: 0.724815694 | E35: -0.6889428204 | F35: 5.12818466 | G35: 5.148835864
A36: 32 | B36: 0.07958141708 | C36: 0.5000247905 | D36: =COS(C36) -> 0.8775706764 | E36: =SIN(C36) -> 0.4794472942 | F36: 6.005755337 | G36: 5.628283158
A37: 33 | B37: 0.5104243141 | C37: 3.207090551 | D37: -0.9978557794 | E37: =SIN(C37) -> -0.06545107669 | F37: 5.007899557 | G37: 5.562832081
A38: 34 | B38: 0.03051508639 | C38: 0.1917319424 | D38: 0.9816756697 | E38: 0.1905593857 | F38: 5.989575227 | G38: 5.753391467
A39: 35 | B39: 0.5696177668 | C39: 3.579013983 | D39: -0.9058470114 | E39: -0.4236049953 | F39: 5.083728216 | G39: 5.329786472
A40: 36 | B40: 0.8546282357 | C40: 5.369787573 | D40: 0.6110596884 | E40: -0.7915845231 | F40: =F39+D40 -> 5.694787904 | G40: 4.538201949
A41: 37 | B41: 0.2003959871 | C41: 1.259125121 | D41: 0.3066497546 | E41: 0.9518224246 | F41: 6.001437659 | G41: 5.490024373
A42: 38 | B42: 0.02278241624 | C42: 0.143146143 | D42: 0.9897720737 | E42: 0.14265778 | F42: 6.991209732 | G42: 5.632682153
A43: 39 | B43: 0.2532007614 | C43: 1.590907304 | D43: -0.0201096212 | E43: 0.9997977811 | F43: 6.971100111 | G43: 6.632479934
A44: 40 | B44: 0.9862824921 | C44: 6.196995663 | D44: 0.9962879714 | E44: -0.08608297169 | F44: 7.967388083 | G44: 6.546396963
A45: 41 | B45: 0.4829252451 | C45: 3.034308805 | D45: -0.9942506056 | E45: 0.1070781643 | F45: 6.973137477 | G45: 6.653475127
A46: 42 | B46: 0.4061483653 | C46: 2.551905441 | D46: -0.8311146613 | E46: 0.5561010877 | F46: 6.142022816 | G46: 7.209576215
A47: 43 | B47: 0.262061823 | C47: 1.646582996 | D47: -0.07571414163 | E47: 0.9971295647 | F47: 6.066308674 | G47: 8.206705779
A48: 44 | B48: 0.660966046 | C48: 4.152972149 | D48: -0.5306920154 | E48: -0.8475647378 | F48: 5.535616659 | G48: 7.359141042
A49: 45 | B49: 0.5065117393 | C49: 3.182507118 | D49: -0.99916312 | E49: -0.04090305068 | F49: 4.536453539 | G49: 7.318237991
A50: 46 | B50: 0.7446719208 | C50: 4.678911672 | D50: -0.03347105595 | E50: -0.9994396872 | F50: 4.502982483 | G50: 6.318798304
A51: 47 | B51: 0.881118955 | C51: 5.536233672 | D51: 0.7337633494 | E51: -0.6794051421 | F51: 5.236745832 | G51: 5.639393162
A52: 48 | B52: 0.1789647769 | C52: 1.124468856 | D52: 0.4316556896 | E52: 0.9020384502 | F52: 5.668401522 | G52: 6.541431612
A53: 49 | B53: 0.3371113991 | C53: 2.11813339 | D53: -0.5204151594 | E53: 0.8539133807 | F53: 5.147986362 | G53: 7.395344993
A54: 50 | B54: 0.1862921195 | C54: 1.170507908 | D54: 0.3896839773 | E54: 0.9209486402 | F54: 5.53767034 | G54: 8.316293633
A55: 51 | B55: 0.9074760069 | C55: 5.701839913 | D55: =COS(C55) -> 0.835724585 | E55: =SIN(C55) -> -0.5491488123 | F55: 6.373394925 | G55: 7.76714482
A56: 52 | B56: 0.395086 | C56: 2.482398551 | D56: -0.7904860839 | E56: =SIN(C56) -> 0.6124800006 | F56: =F55+D56 -> 5.582908841 | G56: 8.379624821
A57: 53 | B57: 0.9474372343 | C57: 5.95292371 | D57: 0.9459575425 | E57: -0.3242904992 | F57: 6.528866383 | G57: 8.055334322
A58: 54 | B58: 0.962592639 | C58: 6.048147926 | D58: 0.9725056368 | E58: -0.2328793388 | F58: 7.50137202 | G58: 7.822454983
A59: 55 | B59: 0.5784886337 | C59: 3.634751284 | D59: -0.8808419264 | E59: -0.4734104992 | F59: 6.620530093 | G59: 7.349044484
A60: 56 | B60: 0.963044409 | C60: 6.050986481 | D60: 0.9731627586 | E60: -0.2301178943 | F60: 7.593692852 | G60: 7.11892659
A61: 57 | B61: 0.6169812132 | C61: 3.876607294 | D61: -0.7418209358 | E61: -0.6705980161 | F61: 6.851871916 | G61: 6.448328573
A62: 58 | B62: 0.01872721952 | C62: 0.1176665905 | D62: 0.9930852704 | E62: 0.1173952544 | F62: 7.844957187 | G62: 6.565723828
A63: 59 | B63: 0.7070074308 | C63: 4.442258701 | D63: -0.2668569936 | E63: -0.9637361387 | F63: 7.578100193 | G63: 5.601987689
A64: 60 | B64: 0.6900966016 | C64: 4.336004828 | D64: -0.3675601422 | E64: -0.9299997537 | F64: 7.210540051 | G64: 4.671987936
A65: 61 | B65: 0.528703189 | C65: 3.321940109 | D65: -0.9837814286 | E65: -0.1793714043 | F65: 6.226758622 | G65: 4.492616531
A66: 62 | B66: 0.05143729625 | C66: 0.323190064 | D66: 0.9482271024 | E66: 0.3175930767 | F66: 7.174985725 | G66: 4.810209608
A67: 63 | B67: 0.3329741621 | C67: 2.092138363 | D67: -0.498044335 | E67: 0.8671515671 | F67: 6.676941389 | G67: 5.677361175
A68: 64 | B68: 0.6683065129 | C68: 4.199093663 | D68: -0.4910505616 | E68: -0.8711310728 | F68: 6.185890828 | G68: 4.806230102
A69: 65 | B69: 0.9700467496 | C69: 6.094983484 | D69: 0.982342249 | E69: -0.1870927731 | F69: 7.168233077 | G69: 4.619137329
A70: 66 | B70: =RAND() -> 0.8010754444 | C70: =B70*2*3.14159265359 -> 5.033305462 | D70: =COS(C70) -> 0.3154363856 | E70: -0.9489467249 | F70: 7.483669463 | G70: 3.670190604
A71: 67 | B71: 0.664731337 | C71: 4.17663017 | D71: -0.5104936736 | E71: -0.8598815088 | F71: 6.973175789 | G71: 2.810309096
A72: 68 | B72: 0.9829159272 | C72: 6.175842912 | D72: 0.9942443348 | E72: -0.107136374 | F72: =F71+D72 -> 7.967420124 | G72: 2.703172722
A73: 69 | B73: 0.2288377524 | C73: 1.437830003 | D73: 0.1325748613 | E73: 0.9911729951 | F73: 8.099994985 | G73: 3.694345717
A74: 70 | B74: 0.7160349543 | C74: 4.498980304 | D74: -0.211792473 | E74: -0.9773146619 | F74: 7.888202512 | G74: 2.717031055
A75: 71 | B75: 0.7836088222 | C75: 4.923559438 | D75: 0.2096045009 | E75: -0.9777862513 | F75: 8.097807013 | G75: 1.739244803
A76: 72 | B76: 0.4594298191 | C76: 2.886682689 | D76: -0.9676860029 | E76: 0.2521582833 | F76: 7.13012101 | G76: 1.991403087
A77: 73 | B77: 0.9196372484 | C77: 5.778251247 | D77: 0.8752063748 | E77: -0.4837497303 | F77: 8.005327385 | G77: 1.507653356
A78: 74 | B78: 0.2724111301 | C78: 1.71160961 | D78: -0.1403483943 | E78: 0.9901021807 | F78: 7.864978991 | G78: 2.497755537
A79: 75 | B79: 0.1922514363 | C79: 1.2079514 | D79: 0.3549353619 | E79: 0.9348908433 | F79: 8.219914353 | G79: 3.43264638
A80: 76 | B80: 0.1688486129 | C80: 1.060907124 | D80: 0.4880805462 | E80: 0.872798591 | F80: 8.707994899 | G80: 4.305444971
A81: 77 | B81: 0.5017506894 | C81: 3.15259256 | D81: -0.9999395016 | E81: -0.01099968437 | F81: 7.708055397 | G81: 4.294445287
A82: 78 | B82: 0.3924468961 | C82: 2.465816571 | D82: =COS(C82) -> -0.7802217444 | E82: =SIN(C82) -> 0.6255030212 | F82: 6.927833653 | G82: 4.919948308
A83: 79 | B83: 0.9359286293 | C83: 5.880613012 | D83: =COS(C83) -> 0.9200562491 | E83: =SIN(C83) -> -0.3917862918 | F83: 7.847889902 | G83: 4.528162016
A84: 80 | B84: 0.8986228609 | C84: 5.646213956 | D84: 0.8039007717 | E84: -0.5947634397 | F84: 8.651790674 | G84: 3.933398577
A85: 81 | B85: 0.831529239 | C85: 5.224652297 | D85: 0.4901512919 | E85: -0.8716373736 | F85: 9.141941965 | G85: 3.061761203
A86: 82 | B86: 0.9861764821 | C86: 6.196329583 | D86: 0.9962304122 | E86: -0.08674656022 | F86: 10.13817238 | G86: 2.975014643
A87: 83 | B87: 0.5371652105 | C87: 3.375108558 | D87: -0.9728588315 | E87: -0.2313994253 | F87: 9.165313546 | G87: 2.743615218
A88: 84 | B88: 0.9648497291 | C88: 6.062329642 | D88: 0.9757103605 | E88: -0.219064585 | F88: =F87+D88 -> 10.14102391 | G88: 2.524550633
A89: 85 | B89: 0.5747195076 | C89: 3.611069166 | D89: -0.8918052463 | E89: -0.4524194986 | F89: 9.24921866 | G89: 2.072131134
A90: 86 | B90: 0.5199107894 | C90: 3.266695833 | D90: -0.9921847981 | E90: -0.1247771068 | F90: 8.257033862 | G90: 1.947354027
A91: 87 | B91: 0.7999761998 | C91: 5.026398704 | D91: 0.3088747687 | E91: -0.9511027165 | F91: 8.565908631 | G91: 0.9962513108
A92: 88 | B92: 0.5136825466 | C92: 3.227562629 | D92: -0.9963068571 | E92: -0.08586411629 | F92: 7.569601774 | G92: 0.9103871945
A93: 89 | B93: 0.1870892187 | C93: 1.17551623 | D93: 0.3850667018 | E93: 0.9228887447 | F93: 7.954668476 | G93: 1.833275939
A94: 90 | B94: 0.01894703856 | C94: 0.1190477543 | D94: 0.9929221811 | E94: 0.1187667554 | F94: 8.947590657 | G94: 1.952042695
A95: 91 | B95: 0.878545951 | C95: 5.520067011 | D95: 0.7226842292 | E95: -0.6911783452 | F95: 9.670274886 | G95: 1.260864349
A96: 92 | B96: 0.6354106389 | C96: 3.992402791 | D96: -0.6593742893 | E96: -0.7518148353 | F96: 9.010900597 | G96: 0.5090495141
A97: 93 | B97: 0.5182429504 | C97: 3.256216492 | D97: -0.9934378774 | E97: -0.1143730028 | F97: 8.017462719 | G97: 0.3946765113
A98: 94 | B98: 0.5803504648 | C98: 3.646449514 | D98: -0.8752437176 | E98: -0.483682163 | F98: 7.142219002 | G98: -0.08900565176
A99: 95 | B99: 0.8837956291 | C99: 5.553051711 | D99: 0.7450853047 | E99: -0.6669691813 | F99: 7.887304306 | G99: -0.755974833
A100: 96 | B100: 0.7169266098 | C100: 4.504582741 | D100: -0.2063138341 | E100: -0.9784858721 | F100: 7.680990472 | G100: -1.734460705
A101: 97 | B101: 0.8296204484 | C101: 5.212659012 | D101: 0.4796624961 | E101: -0.8774530699 | F101: 8.160652968 | G101: -2.611913775
A102: 98 | B102: 0.5076557468 | C102: 3.189695129 | D102: -0.998843299 | E102: -0.0480839274 | F102: 7.161809669 | G102: -2.659997702
A103: 99 | B103: 0.76417885 | C103: 4.801477323 | D103: 0.08897054384 | E103: -0.9960342576 | F103: 7.250780213 | G103: -3.65603196
A104: 100 | B104: 0.3323826001 | C104: 2.088421469 | D104: -0.4948177916 | E104: 0.8689967509 | F104: =F103+D104 -> 6.755962422 | G104: =G103+E104 -> -2.787035209
A105: 101 | B105: 0.4826573242 | C105: 3.032625408 | D105: -0.9940689419 | E105: 0.1087517301 | F105: =F104+D105 -> 5.76189348 | G105: -2.678283479
A106: 102 | B106: 0.1861507368 | C106: 1.169619574 | D106: 0.3905019333 | E106: 0.9206021074 | F106: 6.152395413 | G106: -1.757681372
A107: 103 | B107: 0.4795479837 | C107: 3.013088845 | D107: -0.9917547413 | E107: 0.1281504316 | F107: 5.160640672 | G107: -1.62953094
A108: 104 | B108: 0.6317692566 | C108: 3.96952331 | D108: -0.6764013473 | E108: -0.7365332426 | F108: 4.484239325 | G108: -2.366064183
A109: 105 | B109: 0.9642859355 | C109: 6.058787222 | D109: 0.9749282214 | E109: -0.222519579 | F109: 5.459167546 | G109: -2.588583762
A110: 106 | B110: 0.7360179792 | C110: 4.624537353 | D110: -0.08773866605 | E110: -0.996143527 | F110: 5.37142888 | G110: -3.584727289
A111: 107 | B111: 0.658825328 | C111: 4.139521621 | D111: -0.5420438596 | E111: -0.8403501974 | F111: 4.82938502 | G111: -4.425077486
A112: 108 | B112: 0.09129588144 | C112: 0.5736289409 | D112: 0.8399371431 | E112: 0.5426836977 | F112: 5.669322163 | G112: -3.882393788
A113: 109 | B113: 0.5719883064 | C113: 3.593908523 | D113: -0.8994373653 | E113: -0.4370496835 | F113: 4.769884798 | G113: -4.319443472
A114: 110 | B114: 0.528136939 | C114: 3.318382255 | D114: -0.984413378 | E114: -0.1758701259 | F114: 3.78547142 | G114: -4.495313598
A115: 111 | B115: 0.7527886115 | C115: 4.729910343 | D115: 0.01752046648 | E115: -0.9998465048 | F115: 3.802991887 | G115: -5.495160103
A116: 112 | B116: 0.2744542315 | C116: 1.724446795 | D116: -0.153046606 | E116: 0.9882189719 | F116: 3.649945281 | G116: -4.506941131
A117: 113 | B117: 0.06267525499 | C117: 0.3938002413 | D117: 0.9234575769 | E117: 0.3837005389 | F117: 4.573402857 | G117: -4.123240592
A118: 114 | B118: 0.8263954973 | C118: 5.192396046 | D118: 0.461785443 | E118: -0.8869916598 | F118: 5.035188301 | G118: -5.010232252
A119: 115 | B119: 0.5299299711 | C119: 3.329648208 | D119: -0.9823696042 | E119: -0.1869490858 | F119: 4.052818696 | G119: -5.197181337
A120: 116 | B120: 0.5168134182 | C120: 3.247234476 | D120: -0.9944250903 | E120: -0.1054454348 | F120: 3.058393606 | G120: -5.302626772
A121: 117 | B121: 0.3528374715 | C121: 2.216943217 | D121: -0.6021145226 | E121: 0.798409733 | F121: 2.456279083 | G121: -4.504217039
A122: 118 | B122: 0.6338095174 | C122: 3.982342647 | D122: -0.6669041606 | E122: -0.7451435033 | F122: 1.789374923 | G122: -5.249360542
A123: 119 | B123: 0.28604409 | C123: 1.797268023 | D123: -0.224540721 | E123: 0.9744647067 | F123: 1.564834202 | G123: -4.274895836
A124: 120 | B124: 0.5230260675 | C124: 3.286269703 | D124: -0.9895525182 | E124: -0.1441728604 | F124: 0.5752816836 | G124: -4.419068696
A125: 121 | B125: 0.7061115334 | C125: 4.436629612 | D125: -0.2722776937 | E125: -0.962218716 | F125: 0.3030039898 | G125: -5.381287412
A126: 122 | B126: 0.3278378131 | C126: 2.05986573 | D126: -0.4698045886 | E126: 0.8827704393 | F126: -0.1668005987 | G126: -4.498516973
A127: 123 | B127: 0.4278903363 | C127: 2.688514274 | D127: -0.8991038491 | E127: 0.4377353864 | F127: -1.065904448 | G127: -4.060781587
A128: 124 | B128: 0.6063120209 | C128: 3.809570781 | D128: -0.7850756173 | E128: -0.6193999315 | F128: -1.850980065 | G128: -4.680181518
A129: 125 | B129: 0.4769873054 | C129: 2.996999629 | D129: -0.9895646288 | E129: 0.1440897129 | F129: -2.840544694 | G129: -4.536091805
A130: 126 | B130: 0.344299077 | C130: 2.163294902 | D130: -0.5584354519 | E130: 0.8295479769 | F130: -3.398980146 | G130: -3.706543828
A131: 127 | B131: 0.4416503444 | C131: 2.774970955 | D131: -0.933543669 | E131: 0.3584636915 | F131: -4.332523815 | G131: -3.348080137
A132: 128 | B132: 0.8441958875 | C132: 5.304239197 | D132: 0.5578974897 | E132: -0.8299098692 | F132: -3.774626325 | G132: -4.177990006
A133: 129 | B133: 0.676402526 | C133: 4.249962413 | D133: -0.4461211293 | E133: -0.8949725906 | F133: -4.220747455 | G133: -5.072962596
A134: 130 | B134: =RAND() -> 0.7198078956 | C134: =B134*2*3.14159265359 -> 4.522686394 | D134: -0.1885668255 | E134: -0.9820603608 | F134: -4.40931428 | G134: -6.055022957
A135: 131 | B135: 0.5472038741 | C135: 3.438183342 | D135: -0.9563384555 | E135: -0.2922614558 | F135: -5.365652736 | G135: -6.347284413
A136: 132 | B136: 0.7550197554 | C136: 4.743929034 | D136: 0.03153482472 | E136: -0.9995026537 | F136: -5.334117911 | G136: -7.346787067
A137: 133 | B137: 0.9569596061 | C137: 6.012754537 | D137: 0.9636559069 | E137: -0.2671465759 | F137: -4.370462004 | G137: -7.613933643
A138: 134 | B138: 0.1659778343 | C138: 1.04286949 | D138: 0.5037435161 | E138: 0.8638532688 | F138: -3.866718488 | G138: -6.750080374
A139: 135 | B139: 0.4082231412 | C139: 2.564941643 | D139: -0.838293282 | E139: 0.5452195643 | F139: -4.70501177 | G139: -6.20486081
A140: 136 | B140: 0.2846659396 | C140: 1.788608849 | D140: -0.2160943485 | E140: 0.9763724866 | F140: -4.921106118 | G140: -5.228488323
A141: 137 | B141: 0.8026253548 | C141: 5.043043836 | D141: 0.3246624804 | E141: -0.9458299392 | F141: -4.596443638 | G141: -6.174318262
A142: 138 | B142: 0.8963170355 | C142: 5.631726028 | D142: 0.7951998153 | E142: -0.6063474695 | F142: -3.801243823 | G142: -6.780665732
A143: 139 | B143: 0.4438768506 | C143: 2.788960506 | D143: -0.9384669022 | E143: 0.3453691843 | F143: -4.739710725 | G143: -6.435296547
A144: 140 | B144: 0.8261996568 | C144: 5.191165545 | D144: 0.4606936488 | E144: -0.887559216 | F144: -4.279017076 | G144: -7.322855763
A145: 141 | B145: 0.2009795807 | C145: 1.262791949 | D145: 0.3031575326 | E145: 0.9529404548 | F145: -3.975859543 | G145: -6.369915309
A146: 142 | B146: 0.520631337 | C146: 3.271223167 | D146: -0.9916097241 | E146: -0.1292677649 | F146: -4.967469267 | G146: -6.499183074
A147: 143 | B147: 0.2412589769 | C147: 1.515874859 | D147: =COS(C147) -> 0.05489386178 | E147: =SIN(C147) -> 0.9984921952 | F147: -4.912575406 | G147: -5.500690878
A148: 144 | B148: 0.5921795042 | C148: 3.72077356 | D148: -0.8369112522 | E148: -0.5473386118 | F148: -5.749486658 | G148: -6.04802949
A149: 145 | B149: 0.06411908271 | C149: 0.4028720784 | D149: 0.9199387567 | E149: 0.3920620919 | F149: -4.829547901 | G149: -5.655967398
A150: 146 | B150: 0.7376782056 | C150: 4.634968863 | D150: -0.07734279974 | E150: -0.9970045593 | F150: -4.906890701 | G150: -6.652971958
A151: 147 | B151: 0.1577548209 | C151: 0.9912027727 | D151: 0.5476839147 | E151: 0.8366853229 | F151: -4.359206786 | G151: -5.816286635
A152: 148 | B152: 0.4627545918 | C152: 2.907572852 | D152: -0.9727421064 | E152: 0.2318896167 | F152: -5.331948893 | G152: -5.584397018
A153: 149 | B153: 0.4196543591 | C153: 2.636766103 | D153: -0.8752583775 | E153: 0.4836556344 | F153: -6.20720727 | G153: -5.100741384
A154: 150 | B154: 0.1317931784 | C154: 0.828080962 | D154: 0.6762906348 | E154: 0.7366349009 | F154: -5.530916635 | G154: -4.364106483
A155: 151 | B155: 0.4745302965 | C155: 2.981561787 | D155: -0.9872223653 | E155: 0.1593486791 | F155: -6.518139 | G155: -4.204757804
A156: 152 | B156: 0.8130993732 | C156: 5.108854035 | D156: 0.3861600157 | E156: -0.922431809 | F156: -6.131978985 | G156: -5.127189613
A157: 153 | B157: 0.1366413169 | C157: 0.8585427145 | D157: 0.6535411679 | E157: 0.7568909709 | F157: -5.478437817 | G157: -4.370298642
A158: 154 | B158: 0.6160155559 | C158: 3.87053989 | D158: -0.7458760453 | E158: -0.6660847731 | F158: -6.224313862 | G158: -5.036383415
A159: 155 | B159: 0.244213531 | C159: 1.53443887 | D159: 0.03634944751 | E159: 0.9993391405 | F159: -6.187964415 | G159: -4.037044274
A160: 156 | B160: 0.4330565859 | C160: 2.720974778 | D160: -0.9128368208 | E160: 0.4083245506 | F160: -7.100801235 | G160: -3.628719724
A161: 157 | B161: 0.751077031 | C161: 4.719156166 | D161: 0.006767133993 | E161: -0.9999771027 | F161: -7.094034101 | G161: -4.628696826
A162: 158 | B162: 0.6825376907 | C162: 4.28851079 | D162: -0.4112985105 | E162: -0.911500705 | F162: -7.505332612 | G162: -5.540197531
A163: 159 | B163: 0.713613564 | C163: 4.48376626 | D163: -0.2266362965 | E163: -0.9739794603 | F163: -7.731968909 | G163: -6.514176992
A164: 160 | B164: 0.1068430931 | C164: 0.671314953 | D164: 0.7830044211 | E164: 0.6220161385 | F164: -6.948964487 | G164: -5.892160853
A165: 161 | B165: 0.8921541035 | C165: 5.605569555 | D165: 0.7790697056 | E165: -0.6269373125 | F165: -6.169894782 | G165: -6.519098166
A166: 162 | B166: 0.7805368049 | C166: 4.904257384 | D166: 0.190693345 | E166: -0.9816496565 | F166: -5.979201437 | G166: -7.500747822
A167: 163 | B167: 0.144897305 | C167: 0.910416618 | D167: 0.6134167747 | E167: 0.7897593687 | F167: -5.365784662 | G167: -6.710988454
A168: 164 | B168: 0.3468044863 | C168: 2.179036853 | D168: -0.5714244246 | E168: 0.8206546941 | F168: -5.937209087 | G168: -5.89033376
A169: 165 | B169: 0.12407636 | C169: 0.779594762 | D169: 0.7111984752 | E169: 0.7029912723 | F169: =F168+D169 -> -5.226010612 | G169: -5.187342487
A170: 166 | B170: 0.3594782883 | C170: 2.2586687 | D170: -0.6348948187 | E170: 0.7725985822 | F170: -5.86090543 | G170: -4.414743905
A171: 167 | B171: 0.1476681233 | C171: 0.9278261824 | D171: 0.5995751439 | E171: 0.8003184658 | F171: -5.261330286 | G171: -3.614425439
A172: 168 | B172: 0.02936700836 | C172: 0.1845183554 | D172: 0.9830247335 | E172: 0.1834730863 | F172: -4.278305553 | G172: -3.430952353
A173: 169 | B173: 0.3220544654 | C173: 2.023527885 | D173: -0.4374235319 | E173: 0.8992556109 | F173: -4.715729085 | G173: -2.531696742
A174: 170 | B174: 0.6629621948 | C174: =B174*2*3.14159265359 -> 4.165514321 | D174: =COS(C174) -> -0.5200202506 | E174: =SIN(C174) -> -0.8541539316 | F174: =F173+D174 -> -5.235749335 | G174: =G173+E174 -> -3.385850674
A175: 171 | B175: 0.2604578582 | C175: 1.636504988 | D175: -0.06566138677 | E175: 0.9978419626 | F175: -5.301410722 | G175: -2.388008711
A176: 172 | B176: 0.01941566646 | C176: 0.1219922303 | D176: 0.9925681715 | E176: 0.1216898718 | F176: -4.308842551 | G176: -2.266318839
A177: 173 | B177: 0.641987322 | C177: 4.033725309 | D177: -0.6277533702 | E177: -0.7784122984 | F177: -4.936595921 | G177: -3.044731138
A178: 174 | B178: 0.8016680492 | C178: 5.037028908 | D178: 0.3189675422 | E178: -0.9477656393 | F178: -4.617628379 | G178: -3.992496777
A179: 175 | B179: 0.1911802376 | C179: 1.20122086 | D179: 0.3612195958 | E179: 0.9324807792 | F179: -4.256408783 | G179: -3.060015998
A180: 176 | B180: 0.4160581121 | C180: 2.614170217 | D180: -0.8641072471 | E180: 0.5033077244 | F180: -5.12051603 | G180: -2.556708273
A181: 177 | B181: 0.4859035118 | C181: 3.053021806 | D181: -0.996080166 | E181: 0.08845508973 | F181: -6.116596196 | G181: -2.468253184
A182: 178 | B182: 0.1620056539 | C182: 1.017911545 | D182: 0.5251443982 | E182: 0.851013138 | F182: -5.591451798 | G182: -1.617240046
A183: 179 | B183: 0.02903285887 | C183: 0.1824188323 | D183: 0.9834077726 | E183: 0.1814088003 | F183: -4.608044025 | G183: -1.435831245
A184: 180 | B184: 0.3777975621 | C184: 2.373772092 | D184: -0.7194261469 | E184: 0.6945689448 | F184: -5.327470172 | G184: -0.7412623005
A185: 181 | B185: 0.3370181675 | C185: 2.117547598 | D185: -0.519914855 | E185: 0.854218089 | F185: -5.847385027 | G185: 0.1129557885
A186: 182 | B186: 0.8713951298 | C186: 5.475137076 | D186: 0.6909107602 | E186: -0.7229400538 | F186: -5.156474267 | G186: -0.6099842653
A187: 183 | B187: 0.01885558328 | C187: =B187*2*3.14159265359 -> 0.1184731238 | D187: =COS(C187) -> 0.9929902642 | E187: =SIN(C187) -> 0.1181961725 | F187: =F186+D187 -> -4.163484003 | G187: =G186+E187 -> -0.4917880929
A188: 184 | B188: 0.226390513 | C188: 1.422453545 | D188: 0.1477993188 | E188: 0.9890173716 | F188: -4.015684684 | G188: 0.4972292787
A189: 185 | B189: 0.105620621 | C189: 0.6636339341 | D189: 0.787758994 | E189: 0.6159835771 | F189: -3.22792569 | G189: 1.113212856
A190: 186 | B190: 0.5671848521 | C190: 3.563727529 | D190: -0.9122163425 | E190: -0.4097088534 | F190: -4.140142032 | G190: 0.7035040025
A191: 187 | B191: 0.9012239201 | C191: 5.662556893 | D191: 0.8135131652 | E191: -0.5815464986 | F191: -3.326628867 | G191: 0.1219575039
A192: 188 | B192: 0.6281449714 | C192: 3.946751255 | D192: -0.6929969017 | E192: -0.7209405622 | F192: -4.019625769 | G192: -0.5989830583
A193: 189 | B193: 0.8290100012 | C193: 5.208823459 | D193: 0.4762934586 | E193: -0.8792863818 | F193: -3.54333231 | G193: -1.47826944
A194: 190 | B194: 0.4668478251 | C194: 2.933291396 | D194: -0.978383623 | E194: 0.2067981776 | F194: -4.521715933 | G194: -1.271471262
A195: 191 | B195: 0.01710128285 | C195: 0.1074505292 | D195: 0.994232744 | E195: 0.1072438847 | F195: -3.527483189 | G195: -1.164227378
A196: 192 | B196: 0.7862265656 | C196: 4.940007205 | D196: 0.2256578247 | E196: -0.9742066239 | F196: -3.301825364 | G196: -2.138434002
A197: 193 | B197: 0.1455692595 | C197: 0.9146386324 | D197: 0.610076942 | E197: 0.7923421766 | F197: -2.691748422 | G197: -1.346091825
A198: 194 | B198: =RAND() -> 0.2766330413 | C198: 1.738136661 | D198: -0.1665604272 | E198: 0.986031249 | F198: -2.858308849 | G198: -0.3600605761
A199: 195 | B199: 0.05328037381 | C199: 0.3347704619 | D199: 0.9444857498 | E199: 0.3285523831 | F199: -1.9138231 | G199: -0.03150819301
A200: 196 | B200: 0.3617126553 | C200: 2.272707641 | D200: -0.6456783634 | E200: 0.7636094886 | F200: -2.559501463 | G200: 0.7321012955
A201: 197 | B201: 0.7923512789 | C201: 4.978489914 | D201: 0.2629716115 | E201: -0.9648035715 | F201: -2.296529852 | G201: -0.2327022759
... 59 more rows

Sheet DataLogN256
A1: √N | B1: AvgΔX | C1: AvgΔY | D1: AvgR | F1: GO TO Worksheet: | G1: N=100 | H1: DataLogN100 | I1: N=169 | J1: DataLogN169 | K1: N=256 | L1: DataLogN256
A2: =SQRT(A5) -> 16 | B2: =AVERAGE(B5:B1048576) -> 0.4021283937 | C2: =AVERAGE(C5:C1048576) -> 2.526647215 | D2: =AVERAGE(D5:D1048576) -> 14.85140707
A4: N | B4: ΔX | C4: ΔX | D4: R
A5: 256 | B5: 0.7736086044 | C5: 4.860726217 | D5: 18.64686017
A6: 256 | B6: 0.03064818299 | C6: 0.1925682131 | D6: 11.05595398

Sheet RvsSqrtNplot

Sheet Notes
A1: F9 - to recalculate the formulas
